bitfinex/quotes_SOLUSD_20240605
["timestamp","ask_amount","ask_price","bid_price","bid_amount"]
[1717611306738,0.17,174.13,174.08,2.1253]
[1717611306969,2.1246,174.15,174.09,2.1252]
[1717611307265,2.1246,174.15,174.09,9.2352]
[1717611307564,2.1246,174.15,174.1,2.1251]
[1717611307740,2.1247,174.14,174.09,9.2352]
[1717611307941,2.1247,174.14,174.09,2.1252]
[1717611308260,2.1247,174.14,174.09,9.2352]
[1717611308568,2.1246,174.15,174.09,9.2352]
[1717611308738,2.1245,174.16,174.11,7.11]
[1717611308932,9.4044,174.17,174.11,9.235]
[1717611309128,2.1244,174.17,174.11,9.235]
[1717611309359,13.1312,174.18,174.13,2.1247]
[1717611309740,6.0212,174.18,174.14,2.1246]
[1717611309943,6.0212,174.18,174.14,13.2918]
[1717611310162,6.0212,174.18,174.16,2.1243]
[1717611310362,7.11,174.22,174.16,2.1243]
[1717611310541,7.11,174.22,174.13,2.1247]
[1717611310542,2.1241,174.19,174.13,2.1247]
[1717611310869,7.11,174.18,174.13,2.1247]
[1717611311049,7.11,174.18,174.12,54.2349]
[1717611311368,9.2342,174.18,174.12,54.2349]
[1717611311745,9.2343,174.17,174.11,2.125]
[1717611312068,7.11,174.17,174.12,2.1249]
[1717611312580,7.11,174.18,174.13,2.1248]
[1717611312744,2.1242,174.18,174.12,9.2349]
[1717611313359,9.4041,174.19,174.13,2.1248]
[1717611313669,2.1242,174.18,174.12,9.2349]
[1717611314167,7.28,174.19,174.12,7.11]
[1717611314168,9.4041,174.19,174.12,7.11]
[1717611314666,9.4041,174.19,174.13,2.1247]
[1717611315167,2.1242,174.18,174.13,2.1247]
[1717611315643,9.4041,174.19,174.13,2.1247]
[1717611315960,7.28,174.19,174.14,2.1246]
[1717611316168,9.4041,174.19,174.14,2.1246]
[1717611316668,0.17,174.19,174.14,2.1246]
[1717611316851,9.404,174.2,174.14,2.1246]
[1717611317255,9.234,174.2,174.14,2.1246]
[1717611317966,7.11,174.2,174.13,9.2347]
[1717611318166,2.1243,174.18,174.12,9.2349]
[1717611318674,9.2343,174.18,174.12,9.2349]
[1717611318967,2.1243,174.18,174.12,7.11]
[1717611319166,7.11,174.18,174.12,7.11]
[1717611319384,2.1244,174.16,174.1,6.0579]
[1717611319551,9.2344,174.17,174.11,54.235]
[1717611319750,7.11,174.17,174.11,52.11]
[1717611320056,9.2343,174.17,174.11,52.11]
[1717611320458,0.34,174.19,174.11,52.11]
[1717611320767,7.11,174.18,174.13,2.1247]
[1717611321267,2.1239,174.21,174.14,7.11]
[1717611321472,9.2338,174.22,174.16,2.1244]
[1717611321845,2.1238,174.21,174.16,2.1244]
[1717611322353,2.1238,174.21,174.16,7.11]
[1717611322557,5.95413363,174.24,174.18,7.11]
[1717611323147,2.1237,174.23,174.18,7.11]
[1717611323368,2.1237,174.23,174.17,9.2343]
[1717611323880,2.1235,174.24,174.18,54.2341]
[1717611324191,2.1235,174.24,174.19,2.124]
[1717611325567,2.1235,174.24,174.19,8.2097]
[1717611325886,9.2334,174.25,174.19,8.2097]
[1717611326057,2.1233,174.26,174.21,6.3055]
[1717611326377,2.1234,174.25,174.2,7.11]
[1717611326773,2.1234,174.25,174.2,13.4155]
[1717611327077,2.1234,174.25,174.2,15.5394]
[1717611327459,2.1233,174.26,174.2,15.5394]
[1717611328087,2.1234,174.25,174.2,13.4155]
[1717611328586,2.1234,174.25,174.2,6.3055]
[1717611330172,2.1233,174.26,174.2,6.3055]
[1717611330382,2.1233,174.26,174.21,15.75]
[1717611330683,2.1234,174.25,174.21,6.5162]
[1717611331682,2.1235,174.24,174.18,45.0]
[1717611331874,2.1235,174.24,174.19,15.4184]
[1717611332571,2.1235,174.24,174.19,13.2944]
[1717611332772,2.1237,174.22,174.17,2.1243]
[1717611332980,2.1237,174.22,174.14,6.1844]
[1717611332981,9.2337,174.22,174.16,9.2344]
[1717611333181,9.2337,174.22,174.16,2.1244]
[1717611333370,9.2337,174.22,174.17,2.1243]
[1717611333571,2.1239,174.21,174.15,7.11]
[1717611333878,9.2339,174.2,174.14,13.2944]
[1717611334278,9.2339,174.2,174.15,45.0]
[1717611334465,7.11,174.2,174.15,45.0]
[1717611334887,7.11,174.19,174.14,2.1246]
[1717611335104,7.11,174.19,174.1,6.093]
[1717611335105,7.11,174.19,174.15,2.1245]
[1717611335390,7.11,174.2,174.15,2.1245]
[1717611335891,7.11,174.19,174.12,7.11]
[1717611336096,9.2341,174.19,174.13,2.1247]
[1717611336260,2.1242,174.18,174.1,11.829]
[1717611336464,9.2343,174.17,174.11,2.125]
[1717611336672,7.11,174.17,174.12,2.1249]
[1717611337088,7.11,174.17,174.08,4.2507]
[1717611337288,7.11,174.15,174.09,7.11]
[1717611337599,0.34,174.18,174.11,9.235]
[1717611337600,7.11,174.18,174.11,9.235]
[1717611337780,62.9495,174.21,174.06,28.44]
[1717611337781,7.11,174.17,174.1,2.1251]
[1717611337986,0.34,174.16,174.09,2.1252]
[1717611338187,7.11,174.14,174.09,2.1252]
[1717611338573,7.11,174.15,174.09,52.11]
[1717611338789,7.11,174.15,174.09,7.11]
[1717611338988,8.7346,174.15,174.09,7.11]
[1717611339292,9.2347,174.14,174.06,4.2513]
[1717611339583,6.11,174.14,174.08,7.11]
[1717611339786,6.11,174.14,174.04,12.777823]
[1717611339787,7.11,174.12,174.04,7.041823]
[1717611339966,2.2951,174.11,174.05,2.1257]
[1717611340167,9.235,174.12,174.06,2.1256]
[1717611340481,9.235,174.12,174.07,2.1255]
[1717611340789,9.2352,174.1,174.04,2.954323]
[1717611341085,6.8604,174.1,174.04,10.064323]
[1717611341269,6.8604,174.1,174.04,2.954323]
[1717611341472,7.11,174.09,174.04,2.954323]
[1717611341665,7.11,174.08,174.04,0.828523]
[1717611341871,9.2355,174.07,174.04,0.828523]
[1717611342779,7.11,174.07,174.04,0.828523]
[1717611343668,7.28,174.06,174.04,0.828523]
[1717611344488,0.17,174.06,174.04,0.828523]
[1717611344688,2.4657,174.06,174.04,0.828523]
[1717611345182,0.34,174.06,174.04,0.828523]
[1717611345377,0.17,174.06,174.04,0.828523]
[1717611345569,7.11,174.07,174.04,0.828523]
[1717611346294,9.5755,174.08,174.04,0.828523]
[1717611346474,2.1255,174.07,174.04,0.828523]
[1717611346873,2.1255,174.08,174.04,0.828523]
[1717611347689,9.2355,174.08,174.04,0.828523]
[1717611347892,2.1255,174.07,174.04,0.828523]
[1717611348072,2.1257,174.06,174.04,0.828523]
[1717611348278,9.2356,174.07,174.04,0.828523]
[1717611348478,2.1256,174.07,174.04,0.828523]
[1717611348876,28.3681,174.05,174.04,0.828523]
[1717611349092,13.8274,174.05,174.04,0.828523]
[1717611349274,9.5758,174.05,174.04,0.828523]
[1717611349589,7.45,174.05,174.04,0.828523]
[1717611349796,2.1256,174.07,174.04,0.828523]
[1717611349995,7.11,174.05,174.04,0.828523]
[1717611350182,9.4058,174.05,174.04,0.828523]
[1717611350382,9.5758,174.05,174.04,0.828523]
[1717611350579,73.8155,174.05,174.04,0.828523]
[1717611350779,49.2834,174.02,173.93,9.2371]
[1717611350981,9.2366,173.99,173.93,9.2371]
[1717611351289,9.2366,173.99,173.94,2.1271]
[1717611351688,7.11,173.99,173.94,2.1271]
[1717611351905,7.11,173.99,173.95,2.127]
[1717611352709,7.11,173.99,173.93,7.11]
[1717611352710,7.11,174.0,173.96,2.1269]
[1717611353507,7.11,174.0,173.96,2.1268]
[1717611353888,0.34,174.01,173.96,2.1268]
[1717611354084,2.1264,174.0,173.95,2.1269]
[1717611354296,7.45,173.99,173.94,2.1271]
[1717611355288,0.34,173.99,173.93,7.11]
[1717611355489,7.45,173.99,173.94,2.1271]
[1717611355807,0.34,173.99,173.94,2.1271]
[1717611355974,7.45,173.99,173.95,2.127]
[1717611356695,7.45,173.99,173.94,2.1271]
[1717611357085,7.11,173.98,173.94,2.1271]
[1717611357406,0.34,173.97,173.92,7.11]
[1717611357706,0.34,173.97,173.93,2.1272]
[1717611358005,7.45,173.97,173.93,2.1272]
[1717611358187,13.4699,173.97,173.92,2.1273]
[1717611358377,6.3599,173.97,173.88,4.2557]
[1717611358578,7.11,173.95,173.91,2.1274]
[1717611358985,7.11,173.96,173.91,2.1274]
[1717611359190,0.34,173.95,173.91,2.1274]
[1717611360203,0.34,173.95,173.9,45.0]
[1717611360503,0.34,173.96,173.91,2.1275]
[1717611360705,7.11,173.95,173.91,2.1275]
[1717611360906,9.2367,173.98,173.91,7.11]
[1717611361081,7.11,173.96,173.92,2.1273]
[1717611361288,7.28,173.95,173.91,2.1274]
[1717611361589,7.11,173.95,173.91,2.1274]
[1717611362385,7.11,173.95,173.9,47.1276]
[1717611362706,9.4069,173.96,173.91,2.1275]
[1717611363007,0.17,173.95,173.91,2.1275]
[1717611363303,7.28,173.95,173.91,2.1275]
[1717611363810,0.17,173.95,173.91,2.1275]
[1717611364408,13.6241,173.95,173.9,2.1276]
[1717611364706,7.28,173.94,173.9,2.1276]
[1717611365284,0.17,173.94,173.91,2.1274]
[1717611366096,0.17,173.95,173.91,2.1274]
[1717611366296,0.34,173.95,173.91,2.1274]
[1717611366887,40.5997,173.99,173.9,7.11]
[1717611367090,5.9575628,174.0,173.95,2.1269]
[1717611367289,2.1263,174.01,173.95,2.1269]
[1717611367489,7.11,173.99,173.94,45.0]
[1717611367700,7.11,173.99,173.95,2.1269]
[1717611367913,2.1263,174.01,173.95,2.1269]
[1717611368220,7.11,173.97,173.89,12.766]
[1717611368401,7.11,173.96,173.92,2.1273]
[1717611368605,7.11,173.97,173.93,2.1272]
[1717611368919,15.5543,173.97,173.92,2.1273]
[1717611369098,7.11,173.96,173.92,2.1273]
[1717611369293,6.7905,173.96,173.92,2.1273]
[1717611369498,7.11,173.95,173.92,2.1274]
[1717611369706,7.28,173.96,173.92,2.1274]
[1717611370006,7.11,173.95,173.92,2.1274]
[1717611370214,7.11,173.95,173.91,2.1274]
[1717611371119,7.11,173.94,173.91,2.1274]
[1717611371709,7.11,173.94,173.89,4.2554]
[1717611371899,7.11,173.94,173.92,2.1274]
[1717611372104,7.11,173.94,173.91,2.1274]
[1717611372420,0.17,173.95,173.91,2.1274]
[1717611372421,7.28,173.95,173.91,2.1274]
[1717611372594,7.28,173.94,173.91,2.1274]
[1717611373010,7.28,173.94,173.89,4.2554]
[1717611373011,9.2374,173.92,173.87,0.828523]
[1717611373216,7.45,173.91,173.87,0.828523]
[1717611373402,7.11,173.9,173.87,2.956523]
[1717611374207,7.45,173.91,173.87,2.956523]
[1717611374392,7.45,173.91,173.88,2.1278]
[1717611374597,7.45,173.91,173.87,2.956423]
[1717611375812,7.45,173.91,173.87,0.828523]
[1717611376006,7.11,173.9,173.87,0.828523]
[1717611376323,49.6588,173.88,173.87,0.828523]
[1717611376626,15.2588,173.88,173.87,0.828523]
[1717611376916,22.7088,173.88,173.87,0.828523]
[1717611377229,15.5988,173.88,173.87,0.828523]
[1717611377809,106.2598,173.88,173.87,0.828523]
[1717611378017,57.9424,173.88,173.87,0.828523]
[1717611378217,93.4924,173.88,173.87,0.828523]
[1717611380112,65.0524,173.88,173.87,0.828523]
[1717611380311,8.4888,173.88,173.87,0.828523]
[1717611380514,15.5988,173.88,173.87,0.828523]
[1717611380714,0.17,173.88,173.87,0.828523]
[1717611381027,14.3181511,173.9,173.87,0.828523]
[1717611381231,12.1904511,173.9,173.87,0.828523]
[1717611381436,7.11,173.88,173.87,0.828523]
[1717611381725,6.2342,173.94,173.87,2.956523]
[1717611381926,8.3614,173.94,173.87,0.828523]
[1717611382131,7.11,173.92,173.87,0.828523]
[1717611382430,7.11,173.92,173.87,2.956423]
[1717611382731,8.3613,173.94,173.89,2.1277]
[1717611382732,7.11,173.94,173.89,2.1277]
[1717611382927,7.11,173.94,173.89,47.1277]
[1717611383634,7.11,173.95,173.89,52.11]
[1717611383816,6.6092,173.98,173.89,45.0]
[1717611384130,12.55683861,173.98,173.88,45.0]
[1717611384432,2.1269,173.96,173.89,2.1277]
[1717611385026,2.1269,173.96,173.9,2.1276]
[1717611385330,0.34,173.95,173.87,0.828523]
[1717611385530,0.34,173.95,173.87,2.956423]
[1717611385531,6.13965809,173.95,173.87,2.956423]
[1717611385715,2.1274,173.93,173.87,0.828523]
[1717611385916,0.17,173.92,173.88,2.1278]
[1717611386231,2.1271,173.94,173.88,2.1278]
[1717611386420,0.34,173.93,173.88,2.1278]
[1717611387127,0.34,173.93,173.89,2.1276]
[1717611387523,0.17,173.93,173.87,2.956423]
[1717611387833,2.2972,173.94,173.88,2.1278]
[1717611388022,0.17,173.94,173.88,2.1278]
[1717611388623,0.17,173.94,173.89,2.1277]
[1717611388843,0.17,173.94,173.9,2.1275]
[1717611389017,0.17,173.95,173.87,0.828523]
[1717611389215,0.34,173.96,173.87,0.828523]
[1717611389415,12.09465809,174.02,173.87,0.828523]
[1717611389722,2.1266,173.99,173.93,2.1272]
[1717611389924,2.1266,173.98,173.92,2.1273]
[1717611390436,2.1266,173.99,173.93,2.1272]
[1717611391933,2.1266,173.99,173.92,2.1273]
[1717611392118,0.17,173.98,173.91,45.0]
[1717611392946,2.1262,174.02,173.96,2.1268]
[1717611394027,2.1263,174.01,173.95,2.127]
[1717611394448,2.1264,174.0,173.94,47.1271]
[1717611395935,2.1264,174.0,173.94,45.0]
[1717611396113,2.2962,174.02,173.97,2.1267]
[1717611396445,2.1261,174.03,173.98,2.1266]
[1717611396739,2.1261,174.03,173.97,2.1267]
[1717611396931,2.1262,174.02,173.97,2.1267]
[1717611397128,2.1261,174.03,173.97,2.1267]
[1717611397431,2.1261,174.03,173.96,45.0]
[1717611397645,2.1261,174.03,173.97,2.1267]
[1717611398254,2.1261,174.03,173.98,2.1266]
[1717611398426,2.1261,174.03,173.97,2.1267]
[1717611398924,2.1261,174.03,173.98,2.1266]
[1717611399334,2.1261,174.03,173.97,2.1267]
[1717611399521,5.95220378,174.05,173.97,4.2535]
[1717611399725,2.1258,174.05,173.99,2.1264]
[1717611399943,2.1258,174.05,174.0,2.1264]
[1717611400153,2.1258,174.05,173.99,2.1264]
[1717611400532,2.1259,174.04,173.99,2.1265]
[1717611400844,2.1259,174.04,173.98,45.0]
[1717611400845,2.1257,174.06,174.0,2.1263]
[1717611401052,2.1256,174.07,173.98,59.8865]
[1717611401224,2.1254,174.08,174.03,2.126]
[1717611401428,2.1255,174.07,174.02,2.1261]
[1717611402128,2.1255,174.07,174.01,47.1262]
[1717611402319,2.1255,174.07,174.01,2.1262]
[1717611402524,2.1255,174.07,174.02,2.1261]
[1717611402926,2.1255,174.08,174.02,2.1261]
[1717611403726,6.5447,174.06,174.02,2.1261]
[1717611403924,6.5447,174.06,174.0,45.0]
[1717611403925,0.34,174.05,173.95,6.381]
[1717611404155,2.1261,174.03,173.97,2.1267]
[1717611404337,0.34,174.05,173.97,2.1267]
[1717611404646,2.1261,174.03,173.97,2.1267]
[1717611404956,2.1259,174.04,173.95,24.2539]
[1717611405135,2.1259,174.04,173.95,10.6349]
[1717611405327,0.34,174.03,173.99,2.1265]
[1717611405526,2.1259,174.04,173.99,2.1265]
[1717611406049,2.4658,174.05,173.99,2.1265]
[1717611406630,2.2958,174.05,173.97,4.2536]
[1717611406821,2.1258,174.05,174.0,2.1263]
[1717611407022,2.1257,174.06,174.0,2.1263]
[1717611407659,2.1257,174.06,173.98,45.0]
[1717611407846,2.1258,174.05,174.0,2.1263]
[1717611409850,2.1259,174.04,173.99,2.1264]
[1717611410164,2.126,174.04,173.99,2.1265]
[1717611411027,2.1258,174.05,174.0,2.1264]
[1717611411239,0.17,174.06,173.98,45.0]
[1717611411431,2.1259,174.04,173.99,2.1265]
[1717611412050,2.1259,174.04,173.98,45.0]
[1717611412233,2.1259,174.04,173.99,2.1265]
[1717611412957,2.1259,174.04,173.99,2.1264]
[1717611413159,2.1258,174.05,174.0,2.1264]
[1717611413345,2.126,174.04,173.99,2.1264]
[1717611413669,2.126,174.04,173.99,2.1265]
[1717611413840,9.266,174.04,173.99,2.1265]
[1717611414039,9.266,174.04,174.0,2.1264]
[1717611414247,7.14,174.04,173.98,52.14]
[1717611414454,7.14,174.04,174.0,2.1264]
[1717611414751,7.14,174.03,173.98,45.0]
[1717611414946,7.14,174.03,173.99,2.1264]
[1717611416154,7.14,174.03,174.0,2.1264]
[1717611416962,7.31,174.05,174.01,2.1262]
[1717611417466,2.2958,174.05,174.01,2.1262]
[1717611417697,9.2658,174.05,174.0,2.1263]
[1717611417852,9.2658,174.05,174.0,45.0]
[1717611418054,0.17,174.06,174.0,45.0]
[1717611418256,14.62363117,174.08,174.01,11.3926]
[1717611418447,14.62363117,174.08,174.03,2.126]
[1717611418766,7.14,174.07,174.03,2.126]
[1717611418961,2.1254,174.09,174.04,9.2659]
[1717611419162,9.2654,174.09,174.03,9.2659]
[1717611419376,7.14,174.08,174.04,45.0]
[1717611419554,2.1253,174.09,174.03,2.1259]
[1717611419738,9.2654,174.08,174.03,2.1259]
[1717611420552,2.1256,174.07,174.02,54.2661]
[1717611421064,2.1256,174.07,174.02,52.14]
[1717611421272,2.1258,174.05,174.0,2.1264]
[1717611421584,2.1258,174.05,174.0,2.1263]
[1717611421737,2.1257,174.06,174.0,7.14]
[1717611421939,7.14,174.07,174.01,9.2662]
[1717611422172,2.1257,174.06,174.01,9.2662]
[1717611422346,9.2656,174.07,174.01,9.2662]
[1717611422541,9.2656,174.07,174.02,47.1261]
[1717611423641,9.2656,174.07,174.02,45.0]
[1717611423951,9.2656,174.07,174.02,47.1261]
[1717611424654,2.4655,174.08,174.03,2.126]
[1717611424964,7.14,174.11,174.05,7.14]
[1717611425136,7.14,174.11,174.07,2.1254]
[1717611425341,9.265,174.11,174.06,47.1256]
[1717611425664,7.14,174.11,174.06,47.1256]
[1717611425852,9.265,174.11,174.06,47.1256]
[1717611428253,7.14,174.11,174.07,2.1255]
[1717611428454,2.465,174.12,174.07,2.1255]
[1717611428763,9.2651,174.11,174.06,47.1256]
[1717611428939,9.605,174.12,174.07,2.1255]
[1717611429137,2.1251,174.11,174.07,45.0]
[1717611429347,9.2651,174.11,174.07,45.0]
[1717611429681,2.1251,174.11,174.06,45.0]
[1717611429967,9.605,174.12,174.07,2.1255]
[1717611430151,9.605,174.12,174.07,47.1255]
[1717611431170,9.435,174.12,174.07,47.1255]
[1717611431766,9.265,174.12,174.07,47.1255]
[1717611432272,9.265,174.12,174.08,2.1254]
[1717611432477,7.14,174.12,174.08,47.1254]
[1717611432768,7.14,174.12,174.08,45.0]
[1717611433067,9.265,174.11,174.07,45.0]
[1717611433446,9.265,174.11,174.06,47.1256]
[1717611434671,9.265,174.11,174.07,2.1255]
[1717611434870,2.1258,174.05,174.0,2.1263]
[1717611435190,9.2658,174.05,174.0,2.1263]
[1717611435349,2.1258,174.05,174.0,2.1263]
[1717611435549,7.14,174.04,173.99,7.14]
[1717611435849,7.14,174.04,174.0,2.1264]
[1717611436370,9.2659,174.04,174.0,2.1264]
[1717611436550,7.14,174.04,174.0,2.1263]
[1717611436750,7.14,174.04,173.98,7.14]
[1717611436952,7.14,174.04,174.01,2.1262]
[1717611437162,7.14,174.04,174.0,2.1264]
[1717611440756,9.2659,174.04,173.99,47.1264]
[1717611441074,7.14,174.03,173.99,2.1264]
[1717611441565,9.2661,174.02,173.98,45.0]
[1717611441869,7.14,174.01,173.98,45.0]
[1717611442048,2.1261,174.03,173.98,47.1266]
[1717611442251,0.34,174.05,173.99,2.1264]
[1717611442448,7.14,174.02,173.99,2.1264]
[1717611442866,7.14,174.02,173.98,47.1266]
[1717611443066,7.14,174.02,173.98,2.1266]
[1717611443257,0.17,174.04,174.0,2.1263]
[1717611443573,9.4358,174.05,174.0,2.1263]
[1717611443771,7.31,174.04,174.0,2.1263]
[1717611444289,7.31,174.04,173.99,47.1265]
[1717611444794,7.31,174.04,174.0,2.1264]
[1717611445292,7.31,174.04,173.99,47.1265]
[1717611445672,9.4358,174.05,174.0,2.1263]
[1717611445873,7.31,174.05,174.01,2.1263]
[1717611446176,0.17,174.05,174.01,2.1263]
[1717611446375,7.31,174.06,174.01,2.1263]
[1717611446569,13.8835,174.06,174.01,45.0]
[1717611446789,9.2658,174.05,174.01,45.0]
[1717611446991,9.2658,174.05,174.0,47.1263]
[1717611448593,9.6059,174.04,174.0,45.0]
[1717611448799,9.4359,174.04,173.99,47.1265]
[1717611449680,7.31,174.04,174.0,2.1264]
[1717611449879,7.31,174.04,174.0,47.1264]
[1717611450292,7.31,174.04,174.0,2.1264]
[1717611450491,9.4359,174.04,173.99,47.1265]
[1717611450880,0.17,174.04,174.0,2.1264]
[1717611451179,9.6059,174.04,173.99,2.1264]
[1717611451391,2.126,174.03,173.98,47.1266]
[1717611451595,2.126,174.03,173.99,45.0]
[1717611451774,2.126,174.03,173.98,2.1266]
[1717611451975,9.6059,174.04,173.99,2.1265]
[1717611452970,7.14,174.03,173.99,2.1265]
[1717611453898,9.2661,174.03,173.98,2.1266]
[1717611454476,7.14,174.03,173.99,2.1265]
[1717611455481,7.14,174.03,174.0,2.1264]
[1717611455680,7.48,174.04,174.0,2.1264]
[1717611455984,9.6059,174.04,174.0,2.1264]
[1717611456303,9.6059,174.04,173.99,2.1265]
[1717611456816,0.34,174.04,173.97,56.3935]
[1717611457097,2.1258,174.05,174.01,2.1263]
[1717611457400,9.2658,174.05,174.0,47.1263]
[1717611458310,6.5735,174.06,174.0,45.0]
[1717611458482,7.14,174.05,174.01,2.1262]
[1717611458801,9.2658,174.05,174.0,47.1263]
[1717611459005,13.7135,174.06,174.0,45.0]
[1717611459189,6.5735,174.06,174.02,2.1261]
[1717611459392,9.2657,174.06,174.02,2.1261]
[1717611459698,2.1257,174.06,174.01,2.1262]
[1717611460086,2.1256,174.07,174.02,2.1261]
[1717611460402,9.2656,174.07,174.03,2.126]
[1717611460601,9.2656,174.07,174.02,47.1261]
[1717611460801,5.95271855,174.09,174.01,8.5052]
[1717611460993,9.2653,174.09,174.04,2.1259]
[1717611461597,2.1252,174.1,174.05,2.1257]
[1717611461806,6.4229,174.11,174.05,52.14]
[1717611462098,2.125,174.12,174.07,2.1255]
[1717611462406,7.14,174.12,174.08,2.1254]
[1717611462715,9.2648,174.13,174.07,54.2655]
[1717611462898,2.125,174.12,174.07,9.2655]
[1717611463105,2.125,174.12,174.08,45.0]
[1717611464291,2.125,174.12,174.07,54.2655]
[1717611464708,9.265,174.12,174.07,47.1255]
[1717611465082,2.1251,174.11,174.07,45.0]
[1717611465294,2.1252,174.1,174.07,45.0]
[1717611465493,9.2651,174.11,174.05,9.2657]
[1717611465697,2.1252,174.1,174.05,9.2657]
[1717611465899,2.1252,174.1,174.06,45.0]
[1717611466095,9.2652,174.1,174.05,47.1257]
[1717611467805,7.14,174.1,174.05,45.0]
[1717611468012,9.2652,174.1,174.05,45.0]
[1717611468504,9.2652,174.1,174.05,2.1257]
[1717611468896,9.2652,174.1,174.04,45.0]
[1717611468897,7.14,174.1,174.06,2.1256]
[1717611469108,2.1251,174.11,174.06,2.1256]
[1717611469315,0.17,174.1,174.06,2.1256]
[1717611469608,2.1249,174.12,174.07,2.1255]
[1717611469811,9.2649,174.12,174.07,2.1255]
[1717611470222,9.2649,174.12,174.07,47.1255]
[1717611470791,9.2649,174.12,174.07,45.0]
[1717611471012,2.1251,174.11,174.07,45.0]
[1717611471313,2.125,174.12,174.07,47.1255]
[1717611471518,9.265,174.12,174.07,45.0]
[1717611472097,9.265,174.12,174.07,47.1255]
[1717611472695,2.125,174.12,174.07,47.1255]
[1717611472907,13.5276,174.13,174.07,45.0]
[1717611473108,13.5276,174.13,174.07,47.1255]
[1717611473109,2.125,174.12,174.07,47.1255]
[1717611473797,2.125,174.12,174.07,45.0]
[1717611473997,2.125,174.12,174.06,9.2656]
[1717611473998,2.1256,174.07,174.02,2.1261]
[1717611474206,9.2653,174.09,174.03,2.126]
[1717611474397,2.1252,174.1,174.04,2.1259]
[1717611474593,2.1252,174.1,174.05,2.1258]
[1717611474899,7.31,174.11,174.05,2.1258]
[1717611475093,9.2652,174.1,174.05,2.1258]
[1717611475492,9.2652,174.1,174.05,47.1258]
[1717611475900,7.14,174.1,174.05,47.1258]
[1717611476101,7.14,174.1,174.06,2.1257]
[1717611476301,15.538,174.11,174.06,47.1257]
[1717611476526,2.1252,174.1,174.06,45.0]
[1717611476823,9.2652,174.1,174.05,47.1257]
[1717611478408,7.14,174.1,174.05,47.1257]
[1717611478715,15.538,174.11,174.06,2.1256]
[1717611478915,15.538,174.11,174.06,47.1256]
[1717611480525,15.538,174.11,174.06,45.0]
[1717611481030,2.1252,174.1,174.06,45.0]
[1717611481198,7.14,174.1,174.06,45.0]
[1717611481406,7.14,174.1,174.06,47.1257]
[1717611481605,7.14,174.1,174.06,2.1257]
[1717611481921,6.2729,174.11,174.06,2.1257]
[1717611481922,13.4129,174.11,174.06,2.1257]
[1717611482130,15.538,174.11,174.06,2.1257]
[1717611483807,2.1252,174.1,174.05,54.2657]
[1717611484713,2.1252,174.1,174.05,47.1257]
[1717611486720,8.398,174.11,174.06,9.2656]
[1717611487109,15.538,174.11,174.06,2.1256]
[1717611487308,2.1252,174.1,174.05,54.2657]
[1717611487525,15.538,174.11,174.06,2.1256]